fUST/lending_fUST_20240803
["ID","MTS","AMOUNT","RATE_DAILY","PERIOD"]
[333950924,1722647449040,-563.31,0.00015068,2]
[333950927,1722647449051,-686.452678,0.00015068,2]
[333950930,1722647449061,-686.452678,0.00015068,2]
[333950933,1722647449072,-500.0,0.00015068,2]
[333950936,1722647449082,-500.0,0.00015068,2]
[333950939,1722647449092,-500.0,0.00015068,2]
[333950942,1722647449103,-500.0,0.00015068,2]
[333950946,1722647449114,-536.2,0.00015068,2]
[333950950,1722647449124,-1487.38,0.00015068,2]
[333950953,1722647449134,-500.0,0.00015068,2]
[333950956,1722647449144,-500.0,0.00015068,2]
[333950959,1722647449155,-635.26,0.00015068,2]
[333950961,1722647449164,-500.0,0.00015068,2]
[333950964,1722647449173,-2284.56,0.00015068,2]
[333950967,1722647449183,-655.21,0.00015068,2]
[333950970,1722647449193,-2864.84043849,0.00015321,5]
[333950974,1722647449205,-3420.24220334,0.00015321,5]
[333950977,1722647449215,-14129.3557501,0.00015322,2]
[333950980,1722647449224,-500.0,0.0001533,2]
[333950984,1722647449233,-1064.04,0.00015331,2]
[333950988,1722647449243,-151.0,0.00015332,2]
[333950992,1722647449252,-151.0,0.00015332,2]
[333950996,1722647449262,-151.0,0.00015332,2]
[333951000,1722647449271,-450.580331,0.00015332,2]
[333951004,1722647449284,-278.160846,0.00015332,2]
[333951008,1722647449293,-278.160846,0.00015332,2]
[333951012,1722647449303,-151.0,0.00015332,2]
[333951016,1722647449314,-151.0,0.00015332,2]
[333951020,1722647449323,-184.015581,0.00015332,2]
[333951024,1722647449333,-184.015581,0.00015332,2]
[333951028,1722647449343,-506.421126,0.00015332,2]
[333951032,1722647449353,-506.421126,0.00015332,2]
[333951035,1722647449362,-205.980176,0.00015332,2]
[333951064,1722647449453,-205.980176,0.00015332,2]
[333951067,1722647449464,-308.33083475,0.00015341,2]
[333951070,1722647449474,-500.0,0.00015341,2]
[333951073,1722647449484,-500.0,0.00015341,2]
[333951076,1722647449493,-286.02088066,0.00015341,2]
[333951078,1722647449502,-500.0,0.00015341,2]
[333951081,1722647449511,-500.0,0.00015341,2]
[333951084,1722647449521,-500.0,0.00015341,2]
[333951087,1722647449534,-500.0,0.00015341,2]
[333951090,1722647449543,-500.0,0.00015341,2]
[333951093,1722647449554,-500.0,0.00015341,2]
[333951096,1722647449564,-500.0,0.00015342,2]
[333951099,1722647449573,-500.0,0.00015342,2]
[333951101,1722647449582,-260.58661,0.00015342,2]
[333951104,1722647449592,-260.58661,0.00015342,2]
[333951107,1722647449602,-1000.0,0.00015342,2]
[333951110,1722647449612,-1000.0,0.00015342,2]
[333951113,1722647449623,-500.0,0.00015342,2]
[333951116,1722647449641,-1000.0,0.00015342,2]
[333951119,1722647449652,-1000.0,0.00015342,2]
[333951122,1722647449663,-395.823848,0.00015342,2]
[333951125,1722647449673,-500.0,0.00015342,2]
[333951128,1722647449689,-500.0,0.00015342,2]
[333951130,1722647449699,-500.0,0.00015342,2]
[333951132,1722647449709,-500.0,0.00015342,2]
[333951134,1722647449720,-157.505298,0.00015342,2]
[333951136,1722647449731,-681.46,0.00015342,2]
[333951138,1722647449741,-151.0,0.00015342,2]
[333951140,1722647449751,-500.0,0.00015342,2]
[333951142,1722647449761,-500.0,0.00015342,2]
[333951144,1722647449772,-1391.48,0.00015342,2]
[333951146,1722647449787,-518.27,0.00015342,2]
[333951148,1722647449796,-500.0,0.00015342,2]
[333951150,1722647449806,-171.867208,0.00015342,2]
[333951152,1722647449816,-500.0,0.00015342,2]
[333951154,1722647449825,-171.867208,0.00015342,2]
[333951156,1722647449835,-665.311065,0.00015342,2]
[333951158,1722647449844,-500.0,0.00015342,2]
[333951160,1722647449854,-665.311065,0.00015342,2]
[333951162,1722647449864,-1770.69,0.00015342,2]
[333951164,1722647449875,-151.0,0.00015342,2]
[333951166,1722647449885,-151.0,0.00015342,2]
[333951168,1722647449895,-563.31,0.00015342,2]
[333951170,1722647449906,-686.452678,0.00015342,2]
[333951172,1722647449915,-686.452678,0.00015342,2]
[333951174,1722647449925,-500.0,0.00015342,2]
[333951176,1722647449935,-500.0,0.00015342,2]
[333951178,1722647449945,-500.0,0.00015342,2]
[333951180,1722647449954,-500.0,0.00015342,2]
[333951182,1722647449964,-536.2,0.00015342,2]
[333951184,1722647449974,-1487.38,0.00015342,2]
[333951186,1722647449984,-500.0,0.00015342,2]
[333951188,1722647449994,-500.0,0.00015342,2]
[333951190,1722647450004,-635.26,0.00015342,2]
[333951192,1722647450014,-500.0,0.00015342,2]
[333951194,1722647450026,-2284.56,0.00015342,2]
[333951196,1722647450042,-655.21,0.00015342,2]
[333951198,1722647450052,-500.0,0.00015483,2]
[333951200,1722647450062,-14129.3557501,0.00015548,2]
[333951201,1722647450072,-506.0,0.00015558,2]
[333951203,1722647450082,-1410.0,0.00015558,2]
[333951205,1722647450092,-1064.04,0.00015605,2]
[333951207,1722647450101,-450.580331,0.00015606,2]
[333951209,1722647450110,-278.160846,0.00015606,2]
[333951211,1722647450121,-278.160846,0.00015606,2]
[333951213,1722647450131,-151.0,0.00015606,2]
[333951215,1722647450141,-151.0,0.00015606,2]
[333951217,1722647450151,-184.015581,0.00015606,2]
[333951219,1722647450161,-184.015581,0.00015606,2]
[333951221,1722647450172,-506.421126,0.00015606,2]
[333951223,1722647450181,-506.421126,0.00015606,2]
[333951225,1722647450192,-205.980176,0.00015606,2]
[333951227,1722647450202,-205.980176,0.00015606,2]
[333951229,1722647450212,-151.0,0.00015615,2]
[333951231,1722647450222,-151.0,0.00015615,2]
[333951233,1722647450232,-151.0,0.00015615,2]
[333951235,1722647450243,-500.0,0.00015615,2]
[333951237,1722647450253,-151.0,0.00015615,2]
[333951239,1722647450263,-171.867208,0.00015615,2]
[333951241,1722647450274,-171.867208,0.00015615,2]
[333951243,1722647450288,-665.311065,0.00015615,2]
[333951245,1722647450297,-665.311065,0.00015615,2]
[333951247,1722647450306,-151.0,0.00015615,2]
[333951249,1722647450315,-151.0,0.00015615,2]
[333951251,1722647450325,-686.452678,0.00015615,2]
[333951253,1722647450334,-686.452678,0.00015615,2]
[333951255,1722647450345,-500.0,0.00015616,2]
[333951257,1722647450356,-569.58,0.00015616,2]
[333951259,1722647450366,-260.58661,0.00015616,2]
[333951262,1722647450376,-260.58661,0.00015616,2]
[333951263,1722647450385,-500.0,0.00015616,2]
[333951266,1722647450395,-500.0,0.00015616,2]
[333951268,1722647450407,-500.0,0.00015616,2]
[333951270,1722647450417,-348.10491506,0.00015616,2]
[333951272,1722647450427,-500.0,0.00015616,2]
[333951274,1722647450437,-681.46,0.00015616,2]
[333951276,1722647450447,-500.0,0.00015616,2]
[333951278,1722647450458,-500.0,0.00015616,2]
[333951280,1722647450468,-1391.48,0.00015616,2]
[333951282,1722647450480,-518.27,0.00015616,2]
[333951284,1722647450490,-500.0,0.00015616,2]
[333951286,1722647450500,-500.0,0.00015616,2]
[333951288,1722647450510,-500.0,0.00015616,2]
[333951290,1722647450520,-1770.69,0.00015616,2]
[333951292,1722647450533,-563.31,0.00015616,2]
[333951294,1722647450543,-500.0,0.00015616,2]
[333951296,1722647450552,-500.0,0.00015616,2]
[333951298,1722647450562,-500.0,0.00015616,2]
[333951300,1722647450571,-500.0,0.00015616,2]
[333951302,1722647450582,-536.2,0.00015616,2]
[333951304,1722647450592,-1487.38,0.00015616,2]
[333951306,1722647450603,-612.57516008,0.00015616,2]
[333951309,1722647450613,-500.0,0.00015616,2]
[333951311,1722647450624,-635.26,0.00015616,2]
[333951313,1722647450637,-500.0,0.00015616,2]
[333951314,1722647450647,-2284.56,0.00015616,2]
[333951316,1722647450657,-655.21,0.00015616,2]
[333951319,1722647450667,-1064.04,0.00015688,2]
[333951321,1722647450682,-151.0,0.00015689,2]
[333951323,1722647450692,-151.0,0.00015689,2]
[333951325,1722647450701,-151.0,0.00015689,2]
[333951327,1722647450712,-582.4,0.00015697,2]
[333951329,1722647450723,-1064.04,0.00015697,2]
[333951331,1722647450735,-14129.3557501,0.00015697,2]
[333951333,1722647450745,-28258.7115002,0.00015698,2]
[333951335,1722647450754,-151.0,0.00015698,2]
[333951337,1722647450764,-151.0,0.00015698,2]
[333951339,1722647450774,-151.0,0.00015698,2]
[333951341,1722647450789,-260.58661,0.00015698,2]
[333951343,1722647450799,-260.58661,0.00015698,2]
[333951345,1722647450809,-450.580331,0.00015698,2]
[333951347,1722647450819,-450.580331,0.00015698,2]
[333951349,1722647450829,-278.160846,0.00015698,2]
[333951351,1722647450840,-278.160846,0.00015698,2]
[333951353,1722647450850,-171.867208,0.00015698,2]
[333951355,1722647450859,-171.867208,0.00015698,2]
[333951357,1722647450869,-665.311065,0.00015698,2]
[333951359,1722647450879,-665.311065,0.00015698,2]
[333951362,1722647450891,-151.0,0.00015698,2]
[333951364,1722647450900,-151.0,0.00015698,2]
[333951366,1722647450910,-286.079632,0.00015698,2]
[333951368,1722647450919,-184.015581,0.00015698,2]
[333951370,1722647450929,-686.452678,0.00015698,2]
[333951372,1722647450939,-184.015581,0.00015698,2]
[333951374,1722647450948,-686.452678,0.00015698,2]
[333951376,1722647450958,-506.421126,0.00015698,2]
[333951378,1722647450968,-506.421126,0.00015698,2]
[333951380,1722647450978,-205.980176,0.00015698,2]
[333951382,1722647450987,-205.980176,0.00015698,2]
[333951384,1722647450997,-1064.04,0.00015698,2]
[333951385,1722647451007,-151.0,0.00015699,2]
[333951386,1722647451017,-151.0,0.00015699,2]
[333951388,1722647451027,-243.195207,0.00015699,2]
[333951390,1722647451045,-260.58661,0.00015699,2]
[333951392,1722647451054,-260.586604,0.00015699,2]
[333951394,1722647451064,-450.580331,0.00015699,2]
[333951396,1722647451073,-450.580331,0.00015699,2]
[333951397,1722647451083,-278.160846,0.00015699,2]
[333951399,1722647451093,-278.160846,0.00015699,2]
[333951401,1722647451103,-171.867208,0.00015699,2]
[333951403,1722647451112,-665.311065,0.00015699,2]
[333951405,1722647451122,-665.311062,0.00015699,2]
[333951407,1722647451131,-171.867208,0.00015699,2]
[333951409,1722647451141,-151.0,0.00015699,2]
[333951411,1722647451151,-151.0,0.00015699,2]
[333951412,1722647451160,-184.015581,0.00015699,2]
[333951414,1722647451170,-686.452678,0.00015699,2]
[333951416,1722647451179,-184.015581,0.00015699,2]
[333951418,1722647451189,-686.452684,0.00015699,2]
[333951420,1722647451199,-506.421126,0.00015699,2]
[333951422,1722647451209,-506.421126,0.00015699,2]
[333951424,1722647451218,-205.980176,0.00015699,2]
[333951426,1722647451228,-205.980176,0.00015699,2]
[333951428,1722647451238,-42388.0672504,0.00015699,2]
[333951430,1722647451248,-1064.04,0.00015707,2]
[333951432,1722647451258,-1064.04,0.00015707,2]
[333951434,1722647451268,-30000.0,0.00015707,2]
[333951436,1722647451278,-16906.37135751,0.00015707,2]
[333951439,1722647451295,-445.12237665,0.00015707,2]
[333951441,1722647451307,-474.67865941,0.00015707,2]
[333951443,1722647451319,-2446.29892737,0.00015707,2]
[333951445,1722647451330,-292.64170772,0.00015707,2]
[333951474,1722647451606,-166.44,0.00010959,2]
[333951476,1722647451617,-500.0,0.00013698,2]
[333951478,1722647451627,-276.63,0.00015484,2]
[333951480,1722647451642,-5162.18260913,0.00015707,2]
[333951608,1722647453825,-508.45396723,0.00013698,2]
[333951610,1722647453835,-102.46555508,0.00013698,2]
[333956194,1722648068655,179.98818922,9.999e-05,2]
[333956197,1722648150468,311.5714606,0.00027,120]
[333956198,1722648154500,1832.06177568,0.00027,120]
[333956199,1722648194709,161.21716942,9.999e-05,2]
[333956200,1722648302575,248.79133132,9.999e-05,2]
[333956201,1722648331190,309.42755902,9.999e-05,2]
[333956202,1722648352541,175.771551,9.999e-05,2]
[333956203,1722648354341,567.88989652,9.999e-05,2]
[333956206,1722648372131,275.12301214,9.999e-05,2]
[333956207,1722648385285,309.47390132,9.999e-05,2]
[333956209,1722648471964,350.77118343,9.999e-05,2]
[333956210,1722648478133,667.00211702,9.999e-05,2]
[333956219,1722648509896,206.37236622,9.999e-05,2]
[333956287,1722648633607,-837.54,0.00010959,2]
[333956288,1722648633616,-154.91479686,0.0001212,2]
[333956289,1722648633627,-154.96755753,0.0001212,2]
[333956290,1722648633637,-300.0,0.0001253,2]
[333956292,1722648633646,-225.0,0.0001253,2]
[333956294,1722648633656,-1537.87764561,0.00012531,2]
[333956297,1722648633669,-586.23740997,0.00012531,2]
[333956298,1722648633681,-510.30323151,0.00012531,2]
[333956299,1722648633692,-1513.31560409,0.00012531,2]
[333956307,1722648638871,-18043.70617442,0.00012531,2]
[333956310,1722648638884,-167.824585,0.00012986,2]
[333956314,1722648638895,-1957.28117244,0.00013598,2]
[333956318,1722648638906,-5742.74376872,0.00013688,2]
[333956321,1722648638916,-500.0,0.00013697,2]
[333956323,1722648638930,-1629.26928721,0.00013698,2]
[333956326,1722648638940,-218.36080882,0.00013698,2]
[333956329,1722648638951,-500.0,0.00013698,2]
[333956332,1722648638961,-500.0,0.00013698,2]
[333956334,1722648638971,-500.0,0.00013698,2]
[333956336,1722648638982,-500.0,0.00013698,2]
[333956339,1722648638991,-500.0,0.00013698,2]
[333956342,1722648639005,-500.0,0.00013698,2]
[333956344,1722648639014,-500.0,0.00013698,2]
[333956347,1722648639024,-500.0,0.00013698,2]
[333956349,1722648639035,-500.0,0.00013698,2]
[333956351,1722648639045,-500.0,0.00013698,2]
[333956352,1722648639055,-500.0,0.00013698,2]
[333956353,1722648639064,-500.0,0.00013698,2]
[333956354,1722648639076,-500.0,0.00013698,2]
[333956355,1722648639086,-266.34056533,0.00013698,2]
[333956356,1722648639096,-328.07271713,0.00013698,2]
[333956357,1722648639106,-500.0,0.00013698,2]
[333956358,1722648639116,-500.0,0.00013698,2]
[333956359,1722648639125,-500.0,0.00013698,2]
[333956360,1722648639135,-508.70336244,0.00013698,2]
[333956361,1722648639146,-510.72,0.00013698,2]
[333956362,1722648639156,-510.56750219,0.00013698,2]
[333956363,1722648639166,-500.0,0.00013698,2]
[333956364,1722648639182,-500.0,0.00013698,2]
[333956365,1722648639192,-500.0,0.00013698,2]
[333956366,1722648639202,-196.77357668,0.00013698,2]
[333956367,1722648639212,-500.0,0.00013698,2]
[333956368,1722648639221,-500.0,0.00013698,2]
[333956369,1722648639231,-500.0,0.00013698,2]
[333956370,1722648639241,-500.0,0.00013698,2]
[333956371,1722648639251,-500.0,0.00013698,2]
[333956372,1722648639262,-397.53444492,0.00013698,2]
[333956373,1722648639271,-500.0,0.00013698,2]
[333956374,1722648639281,-500.0,0.00013698,2]
[333956375,1722648639291,-500.0,0.00013698,2]
[333956376,1722648639302,-500.0,0.00013698,2]
[333956377,1722648639312,-505.77711142,0.00013698,2]
[333956378,1722648639321,-500.0,0.00013698,2]
[333956379,1722648639331,-500.0,0.00013698,2]
[333956380,1722648639341,-500.0,0.00013698,2]
[333956381,1722648639351,-500.0,0.00013698,2]
[333956382,1722648639360,-500.0,0.00013698,2]
[333956383,1722648639370,-500.0,0.00013698,2]
[333956384,1722648639379,-540.94651742,0.00013698,2]
[333956385,1722648639389,-500.0,0.00013698,2]
[333956386,1722648639399,-500.0,0.00013698,2]
[333956387,1722648639408,-1011.62,0.00013698,2]
[333956388,1722648639423,-616.08024926,0.00013698,2]
[333956389,1722648639433,-500.0,0.00013698,2]
[333956390,1722648639443,-500.0,0.00013698,2]
[333956391,1722648639453,-500.0,0.00013698,2]
[333956392,1722648639463,-500.0,0.00013698,2]
[333956393,1722648639472,-500.0,0.00013698,2]
[333956394,1722648639482,-500.0,0.00013698,2]
[333956395,1722648639491,-500.0,0.00013698,2]
[333956396,1722648639501,-500.0,0.00013698,2]
[333956397,1722648639511,-500.0,0.00013698,2]
[333956398,1722648639520,-500.0,0.00013698,2]
[333956399,1722648639530,-500.0,0.00013698,2]
[333956400,1722648639539,-500.0,0.00013698,2]
[333956401,1722648639549,-500.0,0.00013698,2]
[333956402,1722648639559,-500.0,0.00013698,2]
[333956403,1722648639568,-500.0,0.00013698,2]
[333956404,1722648639579,-500.0,0.00013698,2]
[333956405,1722648639589,-500.0,0.00013698,2]
[333956406,1722648639599,-500.0,0.00013698,2]
[333956407,1722648639608,-500.0,0.00013698,2]
[333956408,1722648639617,-500.0,0.00013698,2]
[333956409,1722648639629,-500.0,0.00013698,2]
[333956410,1722648639639,-500.0,0.00013698,2]
[333956411,1722648639649,-500.0,0.00013698,2]
[333956412,1722648639660,-500.0,0.00013698,2]
[333956413,1722648639675,-500.0,0.00013698,2]
[333956414,1722648639684,-429.70906377,0.00013698,2]
[333956415,1722648639693,-500.0,0.00013698,2]
[333956416,1722648639703,-664.19,0.00013698,2]
[333956417,1722648639713,-500.0,0.00013698,2]
[333956418,1722648639724,-500.0,0.00013698,2]
[333956419,1722648639733,-500.0,0.00013698,2]
[333956420,1722648639744,-500.0,0.00013698,2]
[333956421,1722648639756,-500.0,0.00013698,2]
[333956422,1722648639765,-499.53830597,0.00013698,2]
[333956423,1722648639775,-500.0,0.00013698,2]
[333956424,1722648639784,-500.0,0.00013698,2]
[333956425,1722648639795,-500.0,0.00013698,2]
[333956426,1722648639804,-500.0,0.00013698,2]
[333956427,1722648639815,-5612.47,0.00013698,2]
[333956428,1722648639826,-500.0,0.00013698,2]
[333956429,1722648639836,-2518.51,0.00013698,2]
[333956430,1722648639847,-500.0,0.00013698,2]
[333956431,1722648639858,-500.0,0.00013698,2]
[333956432,1722648639868,-500.0,0.00013698,2]
[333956433,1722648639878,-500.0,0.00013698,2]
[333956434,1722648639889,-500.0,0.00013698,2]
[333956435,1722648639900,-516.94528324,0.00013698,2]
[333956436,1722648639910,-187.06055498,0.00013698,2]
[333956437,1722648639920,-2721.68,0.00013698,2]
[333956438,1722648639930,-500.0,0.00013698,2]
[333956439,1722648639941,-500.0,0.00013698,2]
[333956440,1722648639952,-849.67,0.00013698,2]
[333956441,1722648639962,-500.0,0.00013698,2]
[333956442,1722648639972,-1122.77,0.00013698,2]
[333956443,1722648639984,-1334.56,0.00013698,2]
[333956444,1722648639994,-500.0,0.00013698,2]
[333956445,1722648640005,-500.0,0.00013698,2]
[333956446,1722648640015,-500.0,0.00013698,2]
[333956447,1722648640026,-500.0,0.00013698,2]
[333956448,1722648640035,-500.0,0.00013698,2]
[333956449,1722648640046,-558.8,0.00013698,2]
[333956450,1722648640059,-500.0,0.00013698,2]
[333956451,1722648640069,-500.0,0.00013698,2]
[333956452,1722648640079,-500.0,0.00013698,2]
[333956453,1722648640088,-500.0,0.00013698,2]
[333956454,1722648640099,-500.0,0.00013698,2]
[333956455,1722648640110,-500.0,0.00013698,2]
[333956456,1722648640122,-501.02034836,0.00013698,2]
[333956457,1722648640133,-500.0,0.00013698,2]
[333956458,1722648640143,-500.0,0.00013698,2]
[333956459,1722648640154,-502.65392795,0.00013698,2]
[333956460,1722648640165,-500.0,0.00013698,2]
[333956461,1722648640180,-500.0,0.00013698,2]
[333956462,1722648640189,-500.0,0.00013698,2]
[333956463,1722648640198,-500.0,0.00013698,2]
[333956464,1722648640207,-528.70473741,0.00013698,2]
[333956465,1722648640216,-500.0,0.00013698,2]
[333956466,1722648640226,-581.26,0.00013698,2]
[333956467,1722648640238,-1404.09,0.00013698,2]
[333956468,1722648640249,-506.95051975,0.00013698,2]
[333956469,1722648640259,-500.0,0.00013698,2]
[333956470,1722648640269,-500.0,0.00013698,2]
[333956471,1722648640282,-920.59,0.00013698,2]
[333956472,1722648640293,-500.0,0.00013698,2]
[333956473,1722648640303,-500.0,0.00013698,2]
[333956474,1722648640313,-500.0,0.00013698,2]
[333956475,1722648640325,-500.0,0.00013698,2]
[333956476,1722648640334,-693.68,0.00013698,2]
[333956477,1722648640344,-500.0,0.00013698,2]
[333956478,1722648640354,-500.0,0.00013698,2]
[333956479,1722648640364,-500.0,0.00013698,2]
[333956480,1722648640374,-500.0,0.00013698,2]
[333956481,1722648640384,-500.0,0.00013698,2]
[333956482,1722648640394,-1626.9,0.00013698,2]
[333956483,1722648640405,-500.0,0.00013698,2]
[333956484,1722648640415,-500.0,0.00013698,2]
[333956485,1722648640429,-500.0,0.00013698,2]
[333956486,1722648640440,-611.63,0.00013698,2]
[333956487,1722648640450,-500.0,0.00013698,2]
[333956488,1722648640461,-500.0,0.00013698,2]
[333956489,1722648640471,-500.0,0.00013698,2]
[333956490,1722648640482,-500.0,0.00013698,2]
[333956491,1722648640492,-500.0,0.00013698,2]
[333956492,1722648640502,-567.35,0.00013698,2]
[333956493,1722648640511,-501.05158394,0.00013698,2]
[333956494,1722648640520,-500.0,0.00013698,2]
[333956495,1722648640530,-500.0,0.00013698,2]
[333956507,1722648640639,-500.0,0.00013698,2]
[333956509,1722648640649,-500.0,0.00013698,2]
[333956511,1722648640659,-3822.01,0.00013698,2]
[333956513,1722648640673,-500.0,0.00013698,2]
[333956514,1722648640683,-500.0,0.00013698,2]
[333956516,1722648640694,-274.12816104,0.00013698,2]
[333956517,1722648640706,-500.0,0.00013698,2]
[333956518,1722648640716,-511.09,0.00013698,2]
[333956519,1722648640726,-500.0,0.00013698,2]
[333956520,1722648640735,-500.0,0.00013698,2]
[333956521,1722648640746,-500.0,0.00013698,2]
[333956522,1722648640757,-500.0,0.00013698,2]
[333956523,1722648640767,-500.0,0.00013698,2]
[333956524,1722648640776,-500.0,0.00013698,2]
[333956527,1722648640786,-967.98,0.00013698,2]
[333956530,1722648640796,-500.0,0.00013698,2]
[333956532,1722648640807,-500.0,0.00013698,2]
[333956534,1722648640817,-500.0,0.00013698,2]
[333956536,1722648640828,-534.73,0.00013698,2]
[333956538,1722648640838,-500.0,0.00013698,2]
[333956540,1722648640848,-500.0,0.00013698,2]
[333956542,1722648640858,-1034.76,0.00013698,2]
[333956544,1722648640868,-500.0,0.00013698,2]
[333956546,1722648640878,-892.63,0.00013698,2]
[333956548,1722648640889,-500.0,0.00013698,2]
[333956551,1722648640903,-500.0,0.00013698,2]
[333956553,1722648640913,-500.0,0.00013698,2]
[333956555,1722648640924,-500.0,0.00013698,2]
[333956557,1722648640934,-504.30861018,0.00013698,2]
[333956559,1722648640944,-504.83640957,0.00013698,2]
[333956561,1722648640954,-552.5,0.00013698,2]
[333956563,1722648640963,-503.35245157,0.00013698,2]
[333956564,1722648640973,-500.0,0.00013698,2]
[333956565,1722648640983,-500.0,0.00013698,2]
[333956566,1722648640994,-500.0,0.00013698,2]
[333956568,1722648641007,-737.56,0.00013698,2]
[333956570,1722648641017,-503.1686396,0.00013698,2]
[333956572,1722648641027,-1547.02,0.00013698,2]
[333956574,1722648641038,-447.4714438,0.00013698,2]
[333956576,1722648641048,-500.80859553,0.00013698,2]
[333956577,1722648641057,-500.0,0.00013698,2]
[333956578,1722648641067,-501.59894841,0.00013698,2]
[333956579,1722648641078,-500.0,0.00013698,2]
[333956580,1722648641087,-150.112233,0.000137,2]
[333956581,1722648641101,-420.0,0.00013784,2]
[333956582,1722648641112,-11485.4875374,0.00013962,2]
[333956583,1722648641121,-500.0,0.00013971,2]
[333956584,1722648641131,-500.0,0.00013971,2]
[333956585,1722648641142,-500.0,0.00013971,2]
[333956586,1722648641152,-311.98242818,0.00013971,2]
[333956587,1722648641161,-500.0,0.00013972,2]
[333956588,1722648641175,-500.0,0.00013972,2]
[333956589,1722648641185,-500.0,0.00013972,2]
[333956590,1722648641194,-500.0,0.00013972,2]
[333956591,1722648641203,-500.0,0.00013972,2]
[333956592,1722648641215,-500.0,0.00013972,2]
[333956593,1722648641224,-557.37768722,0.00013972,2]
[333956594,1722648641234,-535.43295801,0.00013972,2]
[333956595,1722648641244,-510.72,0.00013972,2]
[333956596,1722648641253,-500.0,0.00013972,2]
[333956597,1722648641264,-500.0,0.00013972,2]
[333956598,1722648641274,-500.0,0.00013972,2]
[333956599,1722648641285,-500.0,0.00013972,2]
[333956600,1722648641296,-500.0,0.00013972,2]
[333956601,1722648641307,-507.29826954,0.00013972,2]
[333956602,1722648641316,-500.0,0.00013972,2]
[333956603,1722648641326,-500.0,0.00013972,2]
[333956604,1722648641336,-500.0,0.00013972,2]
[333956605,1722648641346,-500.0,0.00013972,2]
[333956606,1722648641356,-1011.62,0.00013972,2]
[333956607,1722648641366,-500.0,0.00013972,2]
[333956608,1722648641375,-454.13944914,0.00013972,2]
[333956609,1722648641386,-214.78098397,0.00013972,2]
[333956610,1722648641395,-500.0,0.00013972,2]
[333956611,1722648641405,-500.0,0.00013972,2]
[333956612,1722648641415,-500.0,0.00013972,2]
[333956613,1722648641427,-152.49901701,0.00013972,2]
[333956614,1722648641438,-500.0,0.00013972,2]
[333956615,1722648641449,-500.0,0.00013972,2]
[333956616,1722648641460,-500.0,0.00013972,2]
[333956617,1722648641470,-500.0,0.00013972,2]
[333956618,1722648641480,-500.0,0.00013972,2]
[333956619,1722648641489,-500.0,0.00013972,2]
[333956620,1722648641499,-500.0,0.00013972,2]
[333956621,1722648641508,-664.19,0.00013972,2]
[333956622,1722648641519,-500.0,0.00013972,2]
[333956623,1722648641530,-524.67286767,0.00013972,2]
[333956624,1722648641539,-500.0,0.00013972,2]
[333956625,1722648641549,-500.0,0.00013972,2]
[333956626,1722648641559,-500.0,0.00013972,2]
[333956627,1722648641572,-500.0,0.00013972,2]
[333956628,1722648641582,-500.0,0.00013972,2]
[333956629,1722648641591,-5612.47,0.00013972,2]
[333956630,1722648641601,-2518.51,0.00013972,2]
[333956631,1722648641611,-500.0,0.00013972,2]
[333956632,1722648641621,-1842.30098129,0.00013972,2]